fUSD/lending_fUSD_20250811
["ID","MTS","AMOUNT","RATE_DAILY","PERIOD"]
[378647428,1754940647084,-354.28,0.000166,2]
[378647430,1754940647093,-170.48,0.000166,2]
[378647432,1754940647103,-151.0,0.00016605,2]
[378647434,1754940647112,-151.0,0.00016605,2]
[378647436,1754940647122,-200.0,0.00016605,2]
[378647438,1754940647131,-151.0,0.00016605,2]
[378647440,1754940647143,-151.0,0.00016605,2]
[378647442,1754940647153,-151.0,0.00016605,2]
[378647444,1754940647163,-200.0,0.00016605,2]
[378647446,1754940647172,-200.0,0.00016605,2]
[378647448,1754940647181,-2936.56697,0.00016605,2]
[378647450,1754940647192,-2936.56697,0.00016605,2]
[378647452,1754940647202,-2936.56697,0.00016605,2]
[378647454,1754940647211,-1216.0,0.00016605,2]
[378647456,1754940647220,-1216.0,0.00016605,2]
[378647458,1754940647229,-1216.0,0.00016605,2]
[378647460,1754940647239,-1216.0,0.00016605,2]
[378647462,1754940647248,-1216.0,0.00016605,2]
[378647464,1754940647257,-1216.0,0.00016605,2]
[378647465,1754940647266,-1216.0,0.00016605,2]
[378647467,1754940647276,-1216.0,0.00016605,2]
[378647469,1754940647285,-1216.0,0.00016605,2]
[378647471,1754940647294,-1216.0,0.00016605,2]
[378647473,1754940647304,-1216.0,0.00016605,2]
[378647475,1754940647314,-1216.0,0.00016605,2]
[378647477,1754940647323,-151.0,0.0001661,2]
[378647479,1754940647332,-150.0,0.0001661,2]
[378647481,1754940647342,-151.0,0.00016611,2]
[378647483,1754940647351,-151.0,0.00016611,2]
[378647485,1754940647360,-151.0,0.00016611,2]
[378647487,1754940647370,-151.0,0.00016612,2]
[378647489,1754940647379,-151.0,0.00016612,2]
[378647491,1754940647389,-151.0,0.00016612,2]
[378647493,1754940647398,-151.0,0.00016612,2]
[378647495,1754940647408,-151.0,0.00016612,2]
[378647497,1754940647417,-151.0,0.00016612,2]
[378647499,1754940647427,-151.0,0.00016612,2]
[378647501,1754940647436,-151.0,0.00016612,2]
[378647503,1754940647446,-151.0,0.00016612,2]
[378647505,1754940647459,-151.0,0.00016612,2]
[378647507,1754940647469,-151.0,0.00016612,2]
[378647509,1754940647479,-151.0,0.00016612,2]
[378647511,1754940647488,-245.0,0.00016612,2]
[378647513,1754940647497,-151.0,0.00016612,2]
[378647515,1754940647507,-151.0,0.00016612,2]
[378647517,1754940647516,-151.0,0.00016612,2]
[378647519,1754940647526,-151.0,0.00016612,2]
[378647521,1754940647536,-151.0,0.00016612,2]
[378647523,1754940647545,-151.0,0.00016612,2]
[378647525,1754940647555,-151.0,0.00016612,2]
[378647527,1754940647565,-151.0,0.00016612,2]
[378647529,1754940647575,-151.0,0.00016612,2]
[378647531,1754940647585,-157.90866965,0.00016612,2]
[378647533,1754940647595,-846.529843,0.00016612,2]
[378647535,1754940647605,-846.529843,0.00016612,2]
[378647537,1754940647614,-151.0,0.00016612,2]
[378647539,1754940647626,-151.0,0.00016612,2]
[378647541,1754940647635,-569.96557047,0.00016612,2]
[378647543,1754940647645,-4156.0,0.00016626,2]
[378647545,1754940647655,-842.86497659,0.00016628,2]
[378647547,1754940647664,-211.73953792,0.00016628,2]
[378647549,1754940647675,-457.87080987,0.00016628,2]
[378647551,1754940647684,-150.0,0.00016651,2]
[378647553,1754940647693,-150.0,0.00016651,2]
[378647555,1754940647704,-302.0,0.00016661,2]
[378647557,1754940647714,-6026.622372,0.00016666,2]
[378647559,1754940647724,-6026.622372,0.00016666,2]
[378647561,1754940647733,-151.0,0.00016668,2]
[378647563,1754940647742,-263.146712,0.00016668,2]
[378647565,1754940647751,-774.483282,0.00016668,2]
[378647567,1754940647761,-151.0,0.00016668,2]
[378647569,1754940647771,-774.483282,0.00016668,2]
[378647570,1754940647780,-151.0,0.00016668,2]
[378647572,1754940647789,-242.552044,0.00016668,2]
[378647574,1754940647799,-242.552044,0.00016668,2]
[378647576,1754940647809,-286.254694,0.00016668,2]
[378647578,1754940647818,-286.254694,0.00016668,2]
[378647580,1754940647827,-151.0,0.00016668,2]
[378647582,1754940647838,-500.0,0.00016673,2]
[378647584,1754940647847,-500.0,0.00016673,2]
[378647586,1754940647857,-500.0,0.00016673,2]
[378647588,1754940647866,-510.2339438,0.00016673,2]
[378647590,1754940647876,-500.0,0.00016673,2]
[378647592,1754940647886,-150.0,0.00016674,2]
[378647594,1754940647895,-19160.5390084,0.00016682,2]
[378647596,1754940647905,-97841.54297665,0.00016682,2]
[378647601,1754940647941,502.0,0.00015799,2]
[378648533,1754940769908,170.33,0.00015507,2]
[378648536,1754940843302,109.80072266,0.00015621,2]
[378648537,1754940843337,406.65927734,0.00015621,2]
[378648540,1754941083861,150.0,9.7e-05,2]
[378648541,1754941084229,150.0,0.0001088,2]
[378648542,1754941084645,150.0,0.0001207,2]
[378648543,1754941187421,250.0,0.0001551,2]
[378648545,1754941275250,220.81,0.00015516,2]
[378648547,1754941287375,764.85,0.00015504,2]
[378648548,1754941306518,150.5,0.00015504,7]
[378648549,1754941358282,165.07,0.00015466,2]
[378648550,1754941365792,502.0,0.00015808,2]
[378648551,1754941366766,188.29,0.00013699,2]
[378648553,1754941380875,171.15,0.00015916,2]
[378648554,1754941506747,150.0,0.00014721,2]
[378648555,1754941506815,150.0,0.00014857,2]
[378648556,1754941506878,150.0,0.00014993,2]
[378648557,1754941506950,150.0,0.00015129,2]
[378648558,1754941507023,150.0,0.00015266,2]
[378648559,1754941507100,150.0,0.00015402,2]
[378648560,1754941507191,150.0,0.00015538,2]
[378648561,1754941507272,150.0,0.00015675,2]
[378648562,1754941507374,150.0,0.00015811,2]
[378648563,1754941507413,150.0,0.00015947,2]
[378648564,1754941507683,150.0,0.00014721,2]
[378648565,1754941507826,150.0,0.00014766,2]
[378648566,1754941507879,150.0,0.00014811,2]
[378648567,1754941507926,150.0,0.00014857,2]
[378648568,1754941507984,150.0,0.00014902,2]
[378648569,1754941508025,150.0,0.00014948,2]
[378648570,1754941508083,150.0,0.00014993,2]
[378648571,1754941508163,150.0,0.00015039,2]
[378648572,1754941508211,150.0,0.00015084,2]
[378648573,1754941508264,150.0,0.00015129,2]
[378648574,1754941508313,150.0,0.00015175,2]
[378648575,1754941508431,150.0,0.0001522,2]
[378648576,1754941508479,150.0,0.00015266,2]
[378648577,1754941508549,150.0,0.00015311,2]
[378648578,1754941508603,150.0,0.00015357,2]
[378648579,1754941508676,150.0,0.00015402,2]
[378648580,1754941509097,150.0,0.00015447,2]
[378648581,1754941509137,150.0,0.00015493,2]
[378648582,1754941509207,150.0,0.00015538,2]
[378648583,1754941509244,150.0,0.00015584,2]
[378648584,1754941509296,150.0,0.00015629,2]
[378648585,1754941509331,150.0,0.00015675,2]
[378648586,1754941509388,150.0,0.0001572,2]
[378648587,1754941509442,150.0,0.00015766,2]
[378648588,1754941509478,150.0,0.00015811,2]
[378648589,1754941509530,150.0,0.00015856,2]
[378648590,1754941509590,150.0,0.00015902,2]
[378648591,1754941509643,150.0,0.00015947,2]
[378648592,1754941509711,150.0,0.00015993,2]
[378648593,1754941510292,150.0,0.00014721,2]
[378648594,1754941510367,150.0,0.00014857,2]
[378648595,1754941510418,150.0,0.00014993,2]
[378648596,1754941510460,150.0,0.00015129,2]
[378648597,1754941510526,150.0,0.00015266,2]
[378648598,1754941510599,150.0,0.00015402,2]
[378648599,1754941510670,150.0,0.00015538,2]
[378648600,1754941510746,150.0,0.00015675,2]
[378648601,1754941510807,150.0,0.00015811,2]
[378648602,1754941510880,150.0,0.00015947,2]
[378648603,1754941517585,150.0,0.00015129,2]
[378648604,1754941517628,150.0,0.00014721,2]
[378648605,1754941517664,150.0,0.00015538,2]
[378648606,1754941517729,150.0,0.00015947,2]
[378648607,1754941519216,150.0,0.00014721,2]
[378648608,1754941519291,150.0,0.00015538,2]
[378648609,1754941525029,150.0,0.00014721,2]
[378648610,1754941525086,150.0,0.00015266,2]
[378648611,1754941525147,150.0,0.00015811,2]
[378648612,1754941525931,150.0,0.00014721,2]
[378648613,1754941525970,26571.09,0.00015363,2]
[378648614,1754941526011,150.0,0.00014993,2]
[378648615,1754941526067,150.0,0.00015266,2]
[378648616,1754941526115,150.0,0.00015538,2]
[378648617,1754941526189,150.0,0.00015811,2]
[378648618,1754941526693,150.0,0.00014721,2]
[378648619,1754941526728,150.0,0.00015129,2]
[378648620,1754941526890,150.0,0.00015538,2]
[378648621,1754941526938,150.0,0.00015947,2]
[378648622,1754941533856,150.0,0.00014721,2]
[378648623,1754941534001,150.0,0.00014721,2]
[378648624,1754941534091,150.0,0.00014993,2]
[378648625,1754941534147,150.0,0.00015266,2]
[378648626,1754941534220,150.0,0.00015538,2]
[378648627,1754941534285,150.0,0.00015811,2]
[378648628,1754941541192,200.0,0.00015369,2]
[378648629,1754941548685,493.25783202,0.00015984,2]
[378648630,1754941562214,1911.54685671,0.00015984,2]
[378648631,1754941581138,1000.0,0.00015361,2]
[378648633,1754941617682,4174.48,0.00015362,2]
[378648634,1754941646225,700.0,0.000154,5]
[378648635,1754941648344,1400.0,0.000155,5]
[378648636,1754941650819,2100.0,0.000156,5]
[378648637,1754941653038,2900.0,0.000157,5]
[378648638,1754941654783,3600.0,0.000158,5]
[378648639,1754941656909,700.0,0.000159,5]
[378648640,1754941680119,150.0,0.00015371,2]
[378648645,1754941767981,413.16,0.00015365,2]
[378648646,1754941778290,42.23310195,0.00024,120]
[378648649,1754941831890,-150.0,0.00016038,2]
[378648650,1754941831900,-150.0,0.00016084,2]
[378648651,1754941831910,-150.0,0.00016084,2]
[378648652,1754941831919,-75.83033016,0.00016084,2]
[378648653,1754941831943,-74.16966984,0.00016084,2]
[378648654,1754941831953,-150.0,0.00016084,2]
[378648655,1754941831962,-150.0,0.00016084,2]
[378648656,1754941831971,-150.0,0.00016129,2]
[378648657,1754941831981,-413.16,0.00016133,2]
[378648658,1754941831990,-150.0,0.00016174,2]
[378648659,1754941832000,-291.41238321,0.0001621,2]
[378648660,1754941832009,-150.0,0.0001622,2]
[378648661,1754941832019,-150.0,0.0001622,2]
[378648662,1754941832033,-150.0,0.0001622,2]
[378648663,1754941832046,-1200.0,0.00016263,2]
[378648664,1754941832056,-357.0,0.00016264,2]
[378648665,1754941832067,-543.82348173,0.00016265,2]
[378648666,1754941832076,-1989.53446522,0.00016265,2]
[378648667,1754941832101,-270.97175207,0.00016265,2]
[378648672,1754941832383,-227.94695501,0.00016262,2]
[378648673,1754941832393,-2451.19781794,0.00016265,2]
[378648674,1754941832404,-288.29596477,0.00016265,2]
[378648675,1754941832413,-168.69238938,0.00016265,2]
[378648676,1754941832422,-537.81374657,0.00016265,2]
[378648677,1754941832431,-651.9007933,0.00016265,2]
[378648678,1754941832441,-657.41452799,0.00016265,2]
[378648698,1754941832765,-1026.88199114,0.00016265,2]
[378648701,1754941832781,-30777.02644991,0.00016265,2]
[378648702,1754941832792,-674.12859424,0.00016265,2]
[378648703,1754941832800,-223.50383808,0.00016265,2]
[378648704,1754941832810,-229.57166663,0.00016265,2]
[378648705,1754941832819,-150.0,0.00016265,2]
[378648706,1754941832828,-170.33,0.00016282,2]
[378648707,1754941832838,-600.0,0.00016307,2]
[378648708,1754941832852,-600.0,0.00016307,2]
[378648709,1754941832861,-600.0,0.00016307,2]
[378648710,1754941832871,-600.0,0.00016307,2]
[378648711,1754941832881,-346.01,0.00016307,2]
[378648712,1754941832890,-150.0,0.00016311,2]
[378648713,1754941832900,-469.6248,0.00016338,2]
[378648714,1754941832910,-2500.0,0.00016338,2]
[378648715,1754941832919,-195.21598721,0.00016355,2]
[378648716,1754941832928,-195.21598721,0.00016355,2]
[378648717,1754941832938,-231.28369723,0.00016355,2]
[378648718,1754941832947,-150.0,0.00016356,2]
[378648719,1754941832957,-221.55105959,0.00016356,2]
[378648720,1754941832966,-163.83084326,0.00016356,2]
[378648721,1754941832976,-150.0,0.00016356,2]
[378648722,1754941832985,-174.7631854,0.00016356,2]
[378648723,1754941832994,-150.0,0.00016356,2]
[378648724,1754941833003,-150.0,0.00016356,2]
[378648725,1754941833012,-150.0,0.00016356,2]
[378648726,1754941833021,-150.0,0.00016356,2]
[378648727,1754941833033,-150.0,0.00016356,2]
[378648728,1754941833044,-550.0,0.00016364,2]
[378648729,1754941833053,-166015.95150646,0.00016365,2]
[378648730,1754941833165,-14680.45729722,0.00016365,2]
[378648731,1754941833177,-15678.02490338,0.00016365,2]
[378648732,1754941833189,-2173.38593695,0.00016365,2]
[378648733,1754941833200,-20726.0669578,0.00016365,2]
[378648734,1754941837734,-150.06900816,0.00016265,2]
[378648735,1754941837744,-2573.55368274,0.00016365,2]
[378648736,1754941837756,-920.0,0.00016365,2]
[378648737,1754941837767,-5685.34660003,0.00016365,2]
[378648738,1754941837778,-469.65613326,0.00016365,2]
[378648739,1754941837842,-1929.2989339,0.00016365,2]
[378648740,1754941837855,-1514.30930995,0.00016365,2]
[378648741,1754941837949,-65129.82112017,0.00016365,2]
[378648742,1754941837960,-777.820085,0.00016365,2]
[378648743,1754941838003,-1193.2921,0.00016365,2]
[378648744,1754941838015,-1785.66782161,0.00016365,2]
[378648752,1754941839902,-152140.24852935,0.00016365,2]
[378648753,1754941839914,-1774.06468515,0.00016365,2]
[378648754,1754941839962,-1533.89841547,0.00016365,2]
[378648755,1754941840014,-3496.71411905,0.00016365,2]
[378648756,1754941840025,-11920.0,0.00016365,2]
[378648757,1754941840040,-47304.73573702,0.00016365,2]
[378648765,1754941842956,-1215.20000025,0.00016365,2]
[378648789,1754941843286,-1373671.49927754,0.00016365,2]
[378648965,1754941845904,-631.14347676,0.00016365,2]
[378648977,1754941846014,-17035.18265028,0.00016365,2]
[378648983,1754941846069,-1247.7674174,0.00016365,2]
[378648985,1754941846082,-1215.3999998,0.00016365,2]
[378648990,1754941846126,-2001.80500616,0.00016365,2]
[378649099,1754941910122,825.193057,0.00015929,2]
[378649101,1754942085970,513.0,0.00015913,2]
[378649107,1754942267219,382.42,0.00015369,2]
[378649110,1754942398570,177.74,0.00015507,2]
[378649111,1754942437912,179.99,0.00015831,2]
[378649112,1754942476477,198.5,0.00015372,2]
[378649113,1754942519475,1000.0,0.0001537,2]
[378649114,1754942596731,178.87,0.00013699,2]
[378649116,1754942619785,150.0,9.7e-05,2]
[378649117,1754942620142,220.0,0.0001088,2]
[378649118,1754942709980,151.15903033,0.00015016,2]
[378649119,1754942710130,150.0,0.00015016,2]
[378649120,1754942710429,150.0,0.00015016,2]
[378649121,1754942716740,150.0,0.00015016,2]
[378649122,1754942716818,150.0,0.00015016,2]
[378649123,1754942717150,150.0,0.00015016,2]
[378649124,1754942720479,150.0,0.00015016,2]
[378649125,1754942723784,150.0,0.00015016,2]
[378649126,1754942730647,150.0,0.00015016,2]
[378649127,1754942730857,150.0,0.00015016,2]
[378649128,1754942872092,300.25,0.00015332,2]
[378649144,1754943032046,-2878.30095128,0.0001601,2]
[378649145,1754943032099,-744.26699712,0.0001601,2]
[378649146,1754943032111,-427.35535971,0.0001601,2]
[378649147,1754943032120,-168.89871629,0.00016095,2]
[378649148,1754943032132,-81.10128371,0.00016095,2]
[378649149,1754943032141,-240.3015163,0.00016098,2]
[378649150,1754943032207,-59.9484837,0.00016098,2]
[378649151,1754943032217,-513.0,0.00016117,2]
[378649152,1754943032226,-379.96161543,0.00016181,2]
[378649153,1754943032242,-236.07770087,0.00016192,2]
[378649154,1754943032255,-26.92229913,0.00016192,2]
[378649155,1754943032265,-600.16966948,0.00016199,2]
[378649156,1754943032370,-599.83033052,0.00016199,2]
[378649157,1754943032380,-300.0,0.00016199,2]
[378649158,1754943032390,-176.48417352,0.000162,2]
[378649160,1754943032496,-826.51582648,0.000162,2]
[378649162,1754943032506,-1565.99484,0.000162,2]
[378649164,1754943032515,-1565.99484,0.000162,2]
[378649166,1754943032524,-1565.99484,0.000162,2]
[378649168,1754943032534,-521.99828,0.000162,2]
[378649170,1754943032543,-231.28369723,0.000162,2]
[378649172,1754943032555,-2183.31810187,0.000162,2]
[378649173,1754943032564,-510.0,0.00016209,2]
[378649174,1754943032574,-8823.73411138,0.0001621,2]
[378649187,1754943037965,-1620.01226651,0.0001621,2]
[378649188,1754943037977,-930.67443512,0.0001621,2]
[378649189,1754943037988,-1511.94164155,0.0001621,2]
[378649190,1754943038000,-868.29234975,0.0001621,2]
[378649191,1754943038011,-971.22180126,0.0001621,2]
[378649192,1754943038044,-4094.0189871,0.0001621,2]
[378649193,1754943038055,-844.47240521,0.00016255,2]
[378649194,1754943038064,-159.5628685,0.00016263,2]
[378649195,1754943038074,-4196.642,0.00016264,2]
[378649196,1754943038084,-167.996,0.00016264,2]
[378649197,1754943038094,-3337.86370817,0.00016265,2]
[378649198,1754943038106,-11548.76089183,0.00016265,2]
[378649199,1754943038115,-1000.0,0.00016265,2]
[378649200,1754943038127,-157.9086696,0.00016265,2]
[378649201,1754943038136,-168.69238931,0.00016265,2]
[378649202,1754943038147,-150.06900814,0.00016265,2]
[378649203,1754943038156,-561.7738285,0.00016265,2]
[378649204,1754943038166,-500.0,0.00016274,2]
[378649205,1754943038181,-600.0,0.00016276,2]
[378649206,1754943038190,-600.0,0.00016276,2]
[378649207,1754943038206,-600.0,0.00016276,2]
[378649208,1754943038215,-396.81,0.00016276,2]
[378649209,1754943038230,-1000.0,0.000163,2]
[378649210,1754943038240,-1000.0,0.000163,2]
[378649211,1754943038249,-1000.0,0.000163,2]
[378649212,1754943038258,-1000.0,0.000163,2]
[378649213,1754943038270,-1081.0,0.000163,2]
[378649214,1754943038279,-1000.0,0.000163,2]
[378649215,1754943038289,-1000.0,0.000163,2]
[378649216,1754943038298,-454.98521262,0.000163,2]
[378649217,1754943038310,-545.01478738,0.000163,2]
[378649218,1754943038319,-1000.0,0.000163,2]
[378649219,1754943038329,-500.0,0.00016301,2]
[378649220,1754943038338,-350.0,0.00016349,2]
[378649222,1754943038347,-195.21598723,0.00016355,2]
[378649223,1754943038357,-600.0,0.00016355,2]
[378649224,1754943038366,-500.0,0.00016355,2]
[378649226,1754943038379,-160.0,0.00016355,2]
[378649228,1754943038388,-500.0,0.00016355,2]
[378649229,1754943038397,-211.46150203,0.00016355,2]
[378649230,1754943038407,-500.0,0.00016355,2]
[378649231,1754943038416,-500.0,0.00016355,2]
[378649233,1754943038426,-500.0,0.00016355,2]
[378649234,1754943038437,-500.0,0.00016355,2]
[378649235,1754943038448,-500.0,0.00016355,2]
[378649236,1754943038458,-500.0,0.00016355,2]
[378649237,1754943038467,-1566.6099593,0.00016355,2]
[378649238,1754943038476,-500.0,0.00016355,2]
[378649239,1754943038486,-500.0,0.00016355,2]
[378649240,1754943038497,-463.56267139,0.00016355,2]
[378649241,1754943038507,-298.19227517,0.00016355,2]
[378649242,1754943038516,-346.92554585,0.00016355,2]
[378649243,1754943038527,-25.88727165,0.00016355,2]
[378649244,1754943038558,-224.11272835,0.00016355,2]
[378649245,1754943038567,-67.52382028,0.00016355,2]
[378649248,1754943038627,-285.12652316,0.00016355,2]
[378649250,1754943038643,-204.47346784,0.00016359,2]
[378649253,1754943038666,-825.193057,0.00016359,2]
[378649257,1754943038693,-3369.33347516,0.00016359,2]
[378649259,1754943038702,-397.87489445,0.00016364,2]
[378649261,1754943038713,-145232.78402038,0.00016365,2]
[378649263,1754943038726,-803.8929336,0.00016365,2]
[378649266,1754943038746,-5690.0,0.00016365,2]
[378649269,1754943038757,-3057.4931506,0.00016365,2]
[378649271,1754943038769,-2031.0001,0.00016365,2]
[378649273,1754943038780,-3909.99998,0.00016365,2]
[378649275,1754943038791,-2112.0000001,0.00016365,2]
[378649277,1754943038803,-2124.318,0.00016365,2]
[378649382,1754943039965,-999.21765633,0.00016365,2]
[378649384,1754943039977,-357.89754,0.00016365,2]
[378649397,1754943040083,-4269.99999999,0.00016365,2]
[378649408,1754943040180,-1517.46946338,0.00016365,2]
[378649410,1754943040191,-11910.0,0.00016365,2]
[378649422,1754943040287,-1081.17,0.00016365,2]
[378649424,1754943040298,-3700.35944005,0.00016365,2]
[378649426,1754943040311,-23283.62,0.00016365,2]
[378649428,1754943040322,-1189.6885,0.00016365,2]
[378649431,1754943040341,-8591.21514846,0.00016365,2]
[378649716,1754943043023,-285.621336,0.00016365,2]
[378649718,1754943043035,-393.38047036,0.00016365,2]
[378649943,1754943045215,-76054.10717784,0.00016365,2]
[378649946,1754943045227,-252.1933428,0.00016365,2]
[378649949,1754943045246,-278.55558112,0.00016365,2]
[378649951,1754943045258,-1574.2,0.00016365,2]
[378649954,1754943045281,-632.0,0.00016365,2]
[378650036,1754943046073,-138474.60044,0.00016365,2]
[378650038,1754943046085,-5949.375,0.00016365,2]
[378650052,1754943046204,-1270.2838925,0.00016365,2]
[378650059,1754943046256,-5950.0,0.00016365,2]
[378650066,1754943046313,-10990.72199469,0.00016365,2]
[378650073,1754943046368,-1428.212372,0.00016365,2]
[378650075,1754943046379,-31500.00006,0.00016365,2]
[378650081,1754943046423,-1668.79515466,0.00016365,2]
[378650083,1754943046434,-1668.72539876,0.00016365,2]
[378651936,1754943078361,1212.25,0.00015437,2]
[378651939,1754943185199,191.21,0.00015407,2]
[378651942,1754943401005,5888.0,0.00015878,2]
[378651943,1754943406272,5888.0,0.00015925,2]
[378651944,1754943484916,177.74,0.00015507,2]
[378651945,1754943488723,176.64,0.00015371,2]
[378651948,1754943592529,169.92,0.00013699,2]
[378651951,1754943617781,1449.29,0.00015366,2]
[378651957,1754943638741,165.3,0.00015374,2]
[378651960,1754943648337,23900.0,0.00015355,2]
[378651961,1754943666957,174.44,0.00015829,2]
[378651962,1754943687732,150.0,0.00015947,2]
[378651963,1754943687859,150.0,0.00015967,2]
[378651964,1754943726346,1000.0,0.00015368,2]
[378652139,1754943885828,513.0,0.00015427,2]
[378652141,1754944052821,180.15,0.00015175,2]
[378652142,1754944053060,180.15,0.00015934,2]
[378652154,1754944232284,-467.27027804,0.00016009,2]
[378652155,1754944232293,-250.0,0.00016009,2]
[378652156,1754944232303,-363.1335784,0.0001601,2]
[378652157,1754944232314,-200.0,0.00016014,2]
[378652158,1754944232323,-150.0,0.00016019,2]
[378652159,1754944232332,-500.0,0.00016034,2]
[378652160,1754944232341,-88.04489425,0.00016035,2]
[378652161,1754944232371,-911.95510575,0.00016035,2]
[378652162,1754944232380,-1000.0,0.00016044,2]
[378652163,1754944232389,-1000.0,0.00016046,2]
[378652164,1754944232398,-1000.0,0.0001605,2]
[378652165,1754944232407,-1000.0,0.00016054,2]
[378652166,1754944232415,-19.51859703,0.00016071,2]
[378652167,1754944232426,-130.48140297,0.00016071,2]
[378652168,1754944232435,-755.26470343,0.00016074,2]
[378652169,1754944232444,-300.0,0.00016076,2]
[378652170,1754944232708,-1200.0,0.00016077,2]
[378652172,1754944232718,-300.0,0.00016077,2]
[378652174,1754944232727,-1000.0,0.00016078,2]
[378652176,1754944232736,-150.0,0.00016078,2]
[378652178,1754944232745,-150.0,0.00016085,2]
[378652179,1754944232754,-1000.0,0.00016088,2]
[378652180,1754944232763,-150.0,0.00016089,2]
[378652181,1754944232773,-150.0,0.00016092,2]
[378652184,1754944232782,-150.0,0.00016094,2]
[378652186,1754944232791,-1000.0,0.00016101,2]
[378652188,1754944232800,-150.0,0.00016102,2]
[378652190,1754944232811,-150.0,0.00016104,2]
[378652192,1754944232822,-150.0,0.00016105,2]
[378652194,1754944232831,-150.0,0.00016105,2]
[378652196,1754944232840,-150.0,0.00016108,2]
[378652198,1754944232849,-150.0,0.00016111,2]
[378652200,1754944232859,-150.0,0.00016114,2]
[378652202,1754944232869,-1000.0,0.00016119,2]
[378652204,1754944232878,-150.0,0.00016119,2]
[378652206,1754944232888,-1000.0,0.00016122,2]
[378652207,1754944232898,-1000.0,0.00016128,2]
[378652209,1754944232906,-150.0,0.00016128,2]
[378652211,1754944232916,-150.0,0.00016129,2]
[378652212,1754944232925,-150.0,0.0001613,2]
[378652214,1754944232935,-150.0,0.00016132,2]
[378652216,1754944232944,-150.0,0.00016134,2]
[378652218,1754944232953,-150.0,0.0001614,2]
[378652220,1754944232962,-150.0,0.0001614,2]
[378652222,1754944232972,-150.0,0.00016141,2]
[378652223,1754944232981,-150.0,0.00016141,2]
[378652224,1754944232990,-150.0,0.00016142,2]
[378652226,1754944232999,-150.0,0.00016144,2]
[378652227,1754944233009,-1000.0,0.00016146,2]
[378652228,1754944233018,-150.0,0.00016146,2]
[378652229,1754944233028,-150.0,0.00016147,2]
[378652230,1754944233038,-150.0,0.0001615,2]
[378652231,1754944233047,-150.0,0.00016161,2]
[378652232,1754944233055,-178.35078943,0.00016165,2]
[378652233,1754944233067,-1000.0,0.00016166,2]
[378652234,1754944233077,-150.0,0.00016166,2]
[378652235,1754944233087,-1000.0,0.00016168,2]
[378652236,1754944233097,-150.0,0.00016168,2]
[378652237,1754944233107,-150.0,0.00016168,2]
[378652238,1754944233117,-246.12196141,0.00016172,2]
[378652239,1754944233127,-150.0,0.00016172,2]
[378652240,1754944233136,-150.0,0.00016173,2]
[378652241,1754944233146,-150.0,0.00016175,2]
[378652242,1754944233155,-150.0,0.00016175,2]
[378652243,1754944233165,-150.0,0.0001618,2]
[378652244,1754944233174,-150.0,0.00016183,2]
[378652245,1754944233183,-150.0,0.00016183,2]
[378652246,1754944233192,-1000.0,0.0001619,2]
[378652247,1754944233202,-1000.0,0.00016191,2]
[378652248,1754944233211,-150.0,0.00016191,2]
[378652249,1754944233220,-150.0,0.00016192,2]